[Event "Titled Tuesday Blitz March 29 Early 2022"]
[White "Bortnyk, Olexandr"]
[Black "Tristan, Leonardo"]
[WhiteFideId "14120828"]
[BlackFideId "113816"]
[WhiteElo "2723"]
[BlackElo "2404"]
[Result "1-0"]
[Round "06"]
[TimeControl "180+1"]
[Date "2022.03.29"]
[WhiteClock "0:00:04"]
[BlackClock "0:00:21"]

1. d4 {[%clk 0:03:00]}  d5 {[%clk 0:02:58]} 2. Nc3 {[%clk 0:03:00]}  Nf6 {[%clk 0:02:56]} 3. Bf4 {[%clk 0:03:00]}  c5 {[%clk 0:02:56]} 4. e4 {[%clk 0:03:00]}  cxd4 {[%clk 0:02:47]} 5. Qxd4 {[%clk 0:02:58]}  Nc6 {[%clk 0:02:47]} 6. Qa4 {[%clk 0:02:45]}  dxe4 {[%clk 0:02:34]} 7. Nb5 {[%clk 0:02:26]}  e5 {[%clk 0:02:34]} 8. Bxe5 {[%clk 0:02:27]}  Bb4+ {[%clk 0:02:33]} 9. c3 {[%clk 0:02:23]}  Nxe5 {[%clk 0:02:22]} 10. Nc7+ {[%clk 0:02:22]}  Kf8 {[%clk 0:02:18]} 11. Qxb4+ {[%clk 0:02:22]}  Kg8 {[%clk 0:02:16]} 12. Nxa8 {[%clk 0:02:22]}  Nd3+ {[%clk 0:02:07]} 13. Bxd3 {[%clk 0:02:21]}  exd3 {[%clk 0:02:08]} 14. O-O-O {[%clk 0:02:19]}  Bf5 {[%clk 0:02:07]} 15. Qf4 {[%clk 0:01:37]}  Be4 {[%clk 0:01:53]} 16. f3 {[%clk 0:01:31]}  Bg6 {[%clk 0:01:53]} 17. Nc7 {[%clk 0:01:28]}  h5 {[%clk 0:01:51]} 18. Nh3 {[%clk 0:01:22]}  h4 {[%clk 0:01:49]} 19. Rhe1 {[%clk 0:01:17]}  Rh5 {[%clk 0:01:44]} 20. Re5 {[%clk 0:01:00]}  a6 {[%clk 0:01:06]} 21. Rxh5 {[%clk 0:00:58]}  Nxh5 {[%clk 0:01:06]} 22. Qe5 {[%clk 0:00:58]}  Kh7 {[%clk 0:00:55]} 23. Nd5 {[%clk 0:00:47]}  f6 {[%clk 0:00:50]} 24. Qd4 {[%clk 0:00:42]}  Qa5 {[%clk 0:00:43]} 25. Nb4 {[%clk 0:00:35]}  Qa4 {[%clk 0:00:36]} 26. Nf4 {[%clk 0:00:15]}  Nxf4 {[%clk 0:00:31]} 27. Qxf4 {[%clk 0:00:16]}  a5 {[%clk 0:00:31]} 28. Qxh4+ {[%clk 0:00:16]}  Kg8 {[%clk 0:00:31]} 29. Qc4+ {[%clk 0:00:15]}  Kh7 {[%clk 0:00:28]} 30. Qb3 {[%clk 0:00:08]}  Qe8 {[%clk 0:00:28]} 31. Nxd3 {[%clk 0:00:05]}  Qe3+ {[%clk 0:00:28]} 32. Rd2 {[%clk 0:00:05]}  Bxd3 {[%clk 0:00:27]} 33. Qd1 {[%clk 0:00:05]}  Bg6 {[%clk 0:00:27]} 34. a3 {[%clk 0:00:03]}  b5 {[%clk 0:00:26]} 35. h4 {[%clk 0:00:02]}  b4 {[%clk 0:00:25]} 36. axb4 {[%clk 0:00:03]}  axb4 {[%clk 0:00:26]} 37. cxb4 {[%clk 0:00:04]}  Qe6 {[%clk 0:00:25]} 38. h5 {[%clk 0:00:04]}  Qc4+ {[%clk 0:00:21]} 39. Rc2 {[%clk 0:00:04]}  Bxc2 {[%clk 0:00:21]} 40. Qxc2+ {[%clk 0:00:04]} 1-0


[Site "https://www.chess.com"]

[Event "Titled Tuesday Blitz March 29 Early 2022"]
[White "Chen, Qi b"]
[Black "Tsvetkov, Andrey"]
[WhiteFideId "8614733"]
[BlackFideId "34139360"]
[WhiteElo "2432"]
[BlackElo "2280"]
[Result "1-0"]
[Round "06"]
[TimeControl "180+1"]
[Date "2022.03.30"]
[WhiteClock "0:00:10"]
[BlackClock "0:00:27"]

1. e4 {[%clk 0:03:00]}  c5 {[%clk 0:03:00]} 2. Nf3 {[%clk 0:03:00]}  d6 {[%clk 0:03:00]} 3. d4 {[%clk 0:03:00]}  cxd4 {[%clk 0:03:01]} 4. Nxd4 {[%clk 0:03:01]}  Nf6 {[%clk 0:03:02]} 5. Nc3 {[%clk 0:03:02]}  a6 {[%clk 0:03:02]} 6. Rg1 {[%clk 0:03:01]}  Nc6 {[%clk 0:02:59]} 7. g4 {[%clk 0:03:00]}  Nxd4 {[%clk 0:02:57]} 8. Qxd4 {[%clk 0:03:00]}  Nxg4 {[%clk 0:02:57]} 9. Nd5 {[%clk 0:01:58]}  Ne5 {[%clk 0:02:50]} 10. Qc3 {[%clk 0:01:49]}  Rb8 {[%clk 0:01:45]} 11. Bf4 {[%clk 0:00:51]}  e6 {[%clk 0:01:30]} 12. Nc7+ {[%clk 0:00:30]}  Kd7 {[%clk 0:01:28]} 13. Bxe5 {[%clk 0:00:29]}  dxe5 {[%clk 0:01:27]} 14. O-O-O+ {[%clk 0:00:28]}  Bd6 {[%clk 0:01:27]} 15. Rxg7 {[%clk 0:00:26]}  Rf8 {[%clk 0:01:24]} 16. f4 {[%clk 0:00:10]}  Qxc7 {[%clk 0:00:27]} 17. fxe5 {[%clk 0:00:11]}  Qxc3 {[%clk 0:00:28]} 18. bxc3 {[%clk 0:00:11]}  Ke7 {[%clk 0:00:29]} 19. exd6+ {[%clk 0:00:10]}  Kf6 {[%clk 0:00:30]} 20. Rxh7 {[%clk 0:00:10]}  Bd7 {[%clk 0:00:31]} 21. Rh5 {[%clk 0:00:09]}  Rbc8 {[%clk 0:00:28]} 22. Kb2 {[%clk 0:00:09]}  b5 {[%clk 0:00:28]} 23. e5+ {[%clk 0:00:09]}  Kg6 {[%clk 0:00:28]} 24. Be2 {[%clk 0:00:09]}  f5 {[%clk 0:00:24]} 25. Rg1+ {[%clk 0:00:10]}  Kf7 {[%clk 0:00:25]} 26. Rh7+ {[%clk 0:00:10]}  Ke8 {[%clk 0:00:26]} 27. Rgg7 {[%clk 0:00:10]}  Kd8 {[%clk 0:00:27]} 28. Rxd7+ {[%clk 0:00:10]} 1-0


[Site "https://www.chess.com"]

[Event "Titled Tuesday Blitz March 29 Early 2022"]
[White "Chigaev, Maksim"]
[Black "Toncheva, Nadya"]
[WhiteFideId "4108116"]
[BlackFideId "2924056"]
[WhiteElo "2502"]
[BlackElo "1884"]
[Result "1-0"]
[Round "06"]
[TimeControl "180+1"]
[Date "2022.03.29"]
[WhiteClock "0:00:29"]
[BlackClock "0:00:08"]

1. e4 {[%clk 0:03:00]}  c5 {[%clk 0:02:59]} 2. Nc3 {[%clk 0:03:00]}  Nc6 {[%clk 0:02:58]} 3. Bb5 {[%clk 0:02:59]}  Nd4 {[%clk 0:02:58]} 4. Nf3 {[%clk 0:03:00]}  Nxb5 {[%clk 0:02:53]} 5. Nxb5 {[%clk 0:02:59]}  a6 {[%clk 0:02:54]} 6. Nc3 {[%clk 0:02:59]}  d6 {[%clk 0:02:49]} 7. d4 {[%clk 0:02:59]}  cxd4 {[%clk 0:02:49]} 8. Qxd4 {[%clk 0:03:00]}  Bg4 {[%clk 0:02:38]} 9. e5 {[%clk 0:02:47]}  Bxf3 {[%clk 0:02:32]} 10. gxf3 {[%clk 0:02:48]}  dxe5 {[%clk 0:02:32]} 11. Qxe5 {[%clk 0:02:47]}  Nf6 {[%clk 0:02:29]} 12. Bd2 {[%clk 0:02:43]}  Rc8 {[%clk 0:02:13]} 13. O-O-O {[%clk 0:02:34]}  Qc7 {[%clk 0:02:11]} 14. Qe2 {[%clk 0:02:32]}  e6 {[%clk 0:02:09]} 15. f4 {[%clk 0:02:06]}  b5 {[%clk 0:01:59]} 16. a3 {[%clk 0:01:51]}  Be7 {[%clk 0:01:48]} 17. f5 {[%clk 0:01:48]}  e5 {[%clk 0:01:26]} 18. Rhg1 {[%clk 0:01:45]}  g6 {[%clk 0:01:11]} 19. Bg5 {[%clk 0:01:43]}  Bxa3 {[%clk 0:00:34]} 20. Rd3 {[%clk 0:00:53]}  Be7 {[%clk 0:00:17]} 21. Bxf6 {[%clk 0:00:51]}  Bxf6 {[%clk 0:00:17]} 22. Nd5 {[%clk 0:00:52]}  Qd6 {[%clk 0:00:15]} 23. Qe4 {[%clk 0:00:45]}  O-O {[%clk 0:00:14]} 24. fxg6 {[%clk 0:00:44]}  fxg6 {[%clk 0:00:15]} 25. Rxg6+ {[%clk 0:00:41]}  Kh8 {[%clk 0:00:14]} 26. Nxf6 {[%clk 0:00:32]}  Rxf6 {[%clk 0:00:08]} 27. Rxd6 {[%clk 0:00:29]} 1-0


[Site "https://www.chess.com"]

[Event "Titled Tuesday Blitz March 29 Early 2022"]
[White "Costachi, Mihnea"]
[Black "Zemlyanskii, Ivan"]
[WhiteFideId "1217518"]
[BlackFideId "24249971"]
[WhiteElo "2464"]
[BlackElo "1759"]
[Result "1-0"]
[Round "06"]
[TimeControl "180+1"]
[Date "2022.03.29"]
[WhiteClock "0:01:51"]
[BlackClock "0:00:28"]

1. e4 {[%clk 0:02:59]}  c5 {[%clk 0:02:58]} 2. b3 {[%clk 0:02:58]}  e6 {[%clk 0:02:57]} 3. Bb2 {[%clk 0:02:58]}  a6 {[%clk 0:02:57]} 4. f4 {[%clk 0:02:57]}  Nc6 {[%clk 0:02:55]} 5. Nf3 {[%clk 0:02:57]}  b5 {[%clk 0:02:52]} 6. a4 {[%clk 0:02:57]}  b4 {[%clk 0:02:51]} 7. d3 {[%clk 0:02:56]}  Bb7 {[%clk 0:02:51]} 8. Nbd2 {[%clk 0:02:57]}  d5 {[%clk 0:02:45]} 9. g3 {[%clk 0:02:54]}  Nf6 {[%clk 0:02:42]} 10. e5 {[%clk 0:02:52]}  Ng4 {[%clk 0:02:34]} 11. Qe2 {[%clk 0:02:49]}  Rc8 {[%clk 0:02:26]} 12. h3 {[%clk 0:02:49]}  Nh6 {[%clk 0:02:25]} 13. g4 {[%clk 0:02:49]}  Be7 {[%clk 0:02:13]} 14. O-O-O {[%clk 0:02:49]}  Qc7 {[%clk 0:02:05]} 15. Bg2 {[%clk 0:02:44]}  Nd4 {[%clk 0:01:58]} 16. Nxd4 {[%clk 0:02:37]}  cxd4 {[%clk 0:01:59]} 17. Nf3 {[%clk 0:02:38]}  O-O {[%clk 0:01:54]} 18. f5 {[%clk 0:02:24]}  f6 {[%clk 0:01:46]} 19. Nxd4 {[%clk 0:02:18]}  Qxe5 {[%clk 0:01:37]} 20. Qxe5 {[%clk 0:02:17]}  fxe5 {[%clk 0:01:38]} 21. Nxe6 {[%clk 0:02:18]}  Rfe8 {[%clk 0:01:34]} 22. Bxe5 {[%clk 0:02:18]}  Nf7 {[%clk 0:01:33]} 23. Bxg7 {[%clk 0:02:18]}  Ng5 {[%clk 0:01:27]} 24. Bd4 {[%clk 0:02:17]}  Nxe6 {[%clk 0:01:26]} 25. fxe6 {[%clk 0:02:18]}  Bg5+ {[%clk 0:01:27]} 26. Kb2 {[%clk 0:02:19]}  Rxe6 {[%clk 0:01:26]} 27. Rde1 {[%clk 0:02:19]}  Rce8 {[%clk 0:01:19]} 28. Rxe6 {[%clk 0:02:16]}  Rxe6 {[%clk 0:01:19]} 29. h4 {[%clk 0:02:14]}  Bd2 {[%clk 0:01:10]} 30. g5 {[%clk 0:02:14]}  Re2 {[%clk 0:01:10]} 31. Bf3 {[%clk 0:02:14]}  Re7 {[%clk 0:01:02]} 32. h5 {[%clk 0:02:14]}  Rf7 {[%clk 0:01:01]} 33. Bg4 {[%clk 0:02:10]}  Rf4 {[%clk 0:00:57]} 34. Be6+ {[%clk 0:02:10]}  Kf8 {[%clk 0:00:56]} 35. Be5 {[%clk 0:02:06]}  Bc3+ {[%clk 0:00:53]} 36. Bxc3 {[%clk 0:02:05]}  bxc3+ {[%clk 0:00:54]} 37. Kb1 {[%clk 0:02:02]}  d4 {[%clk 0:00:49]} 38. Rg1 {[%clk 0:02:01]}  Bf3 {[%clk 0:00:49]} 39. g6 {[%clk 0:02:00]}  hxg6 {[%clk 0:00:46]} 40. hxg6 {[%clk 0:02:01]}  Kg7 {[%clk 0:00:46]} 41. Ka2 {[%clk 0:01:58]}  Bh5 {[%clk 0:00:42]} 42. b4 {[%clk 0:01:57]}  Bxg6 {[%clk 0:00:38]} 43. Kb3 {[%clk 0:01:57]}  Kf6 {[%clk 0:00:37]} 44. Bc4 {[%clk 0:01:57]}  Rf2 {[%clk 0:00:31]} 45. Bxa6 {[%clk 0:01:55]}  Bf7+ {[%clk 0:00:31]} 46. Bc4 {[%clk 0:01:56]}  Bxc4+ {[%clk 0:00:31]} 47. dxc4 {[%clk 0:01:56]}  Ke5 {[%clk 0:00:30]} 48. a5 {[%clk 0:01:56]}  d3 {[%clk 0:00:28]} 49. cxd3 {[%clk 0:01:51]}  Kd4 {[%clk 0:00:28]} 50. Rg4+ {[%clk 0:01:52]}  Kxd3 {[%clk 0:00:28]} 51. Rg3+ {[%clk 0:01:52]}  Kd4 {[%clk 0:00:24]} 52. Rxc3 {[%clk 0:01:53]}  Rf1 {[%clk 0:00:25]} 53. Rc2 {[%clk 0:01:51]}  Rb1+ {[%clk 0:00:25]} 54. Ka4 {[%clk 0:01:51]}  Ra1+ {[%clk 0:00:26]} 55. Kb5 {[%clk 0:01:51]}  Rh1 {[%clk 0:00:26]} 56. a6 {[%clk 0:01:50]}  Rh8 {[%clk 0:00:27]} 57. a7 {[%clk 0:01:49]}  Ra8 {[%clk 0:00:27]} 58. Kb6 {[%clk 0:01:49]}  Kd3 {[%clk 0:00:28]} 59. Kb7 {[%clk 0:01:49]}  Rh8 {[%clk 0:00:26]} 60. a8=Q {[%clk 0:01:48]}  Rxa8 {[%clk 0:00:26]} 61. Kxa8 {[%clk 0:01:49]}  Kxc2 {[%clk 0:00:27]} 62. c5 {[%clk 0:01:49]}  Kb3 {[%clk 0:00:27]} 63. c6 {[%clk 0:01:50]}  Kxb4 {[%clk 0:00:28]} 64. c7 {[%clk 0:01:51]} 1-0


[Site "https://www.chess.com"]

[Event "Titled Tuesday Blitz March 29 Early 2022"]
[White "Czerw, Dawid"]
[Black "Sanchez, Robert"]
[WhiteFideId "1145746"]
[BlackFideId "2034360"]
[WhiteElo "2125"]
[BlackElo "2271"]
[Result "1-0"]
[Round "06"]
[TimeControl "180+1"]
[Date "2022.03.30"]
[WhiteClock "0:01:03"]
[BlackClock "0:00:31"]

1. d4 {[%clk 0:03:00]}  d5 {[%clk 0:03:00]} 2. c4 {[%clk 0:03:00]}  e6 {[%clk 0:03:00]} 3. Nc3 {[%clk 0:03:00]}  Nf6 {[%clk 0:03:01]} 4. cxd5 {[%clk 0:03:00]}  exd5 {[%clk 0:03:01]} 5. Bg5 {[%clk 0:03:00]}  Be7 {[%clk 0:03:01]} 6. e3 {[%clk 0:03:01]}  c6 {[%clk 0:03:01]} 7. Bd3 {[%clk 0:03:01]}  O-O {[%clk 0:03:01]} 8. Nge2 {[%clk 0:03:02]}  Nbd7 {[%clk 0:03:02]} 9. Qc2 {[%clk 0:03:02]}  h6 {[%clk 0:02:59]} 10. Bf4 {[%clk 0:03:02]}  c5 {[%clk 0:02:58]} 11. O-O {[%clk 0:02:57]}  c4 {[%clk 0:02:55]} 12. Bf5 {[%clk 0:02:57]}  Nb6 {[%clk 0:02:53]} 13. h3 {[%clk 0:02:44]}  Re8 {[%clk 0:02:48]} 14. f3 {[%clk 0:02:43]}  Bd6 {[%clk 0:02:48]} 15. Rae1 {[%clk 0:02:33]}  Nh5 {[%clk 0:02:20]} 16. Bxd6 {[%clk 0:02:26]}  Qxd6 {[%clk 0:02:18]} 17. Bxc8 {[%clk 0:02:22]}  Raxc8 {[%clk 0:02:18]} 18. e4 {[%clk 0:02:23]}  dxe4 {[%clk 0:02:15]} 19. fxe4 {[%clk 0:02:21]}  Ng3 {[%clk 0:01:57]} 20. e5 {[%clk 0:02:15]}  Nxe2+ {[%clk 0:01:50]} 21. Nxe2 {[%clk 0:02:15]}  Qd5 {[%clk 0:01:49]} 22. Rf4 {[%clk 0:02:07]}  Qa5 {[%clk 0:01:42]} 23. Ref1 {[%clk 0:02:03]}  Re7 {[%clk 0:01:42]} 24. Nc3 {[%clk 0:01:49]}  Nd5 {[%clk 0:01:42]} 25. R4f3 {[%clk 0:01:48]}  Rd8 {[%clk 0:01:29]} 26. Qf2 {[%clk 0:01:43]}  Nxc3 {[%clk 0:01:04]} 27. bxc3 {[%clk 0:01:37]}  Qc7 {[%clk 0:01:04]} 28. Rg3 {[%clk 0:01:33]}  b5 {[%clk 0:00:58]} 29. Qf6 {[%clk 0:01:21]}  g6 {[%clk 0:00:52]} 30. e6 {[%clk 0:01:14]}  Qxg3 {[%clk 0:00:36]} 31. exf7+ {[%clk 0:01:10]}  Kh7 {[%clk 0:00:33]} 32. Qxe7 {[%clk 0:01:04]}  Qe3+ {[%clk 0:00:31]} 33. Qxe3 {[%clk 0:01:03]} 1-0


[Site "https://www.chess.com"]

[Event "Titled Tuesday Blitz March 29 Early 2022"]
[White "Del Rio De Angelis, Salvador G."]
[Black "Ronka, Erik"]
[WhiteFideId "2203138"]
[BlackFideId "505080"]
[WhiteElo "2491"]
[BlackElo "2264"]
[Result "1-0"]
[Round "06"]
[TimeControl "180+1"]
[Date "2022.03.30"]
[WhiteClock "0:00:37"]
[BlackClock "0:00:02"]

1. d3 {[%clk 0:03:00]}  d5 {[%clk 0:02:57]} 2. c4 {[%clk 0:03:01]}  c6 {[%clk 0:02:55]} 3. Qc2 {[%clk 0:02:58]}  Nf6 {[%clk 0:02:55]} 4. g3 {[%clk 0:02:59]}  Bg4 {[%clk 0:02:47]} 5. Bg2 {[%clk 0:02:59]}  e6 {[%clk 0:02:47]} 6. Nf3 {[%clk 0:02:59]}  Nbd7 {[%clk 0:02:47]} 7. O-O {[%clk 0:03:00]}  Bd6 {[%clk 0:02:47]} 8. b3 {[%clk 0:03:00]}  O-O {[%clk 0:02:47]} 9. Bb2 {[%clk 0:03:01]}  Qe7 {[%clk 0:02:47]} 10. a3 {[%clk 0:03:01]}  e5 {[%clk 0:02:46]} 11. h3 {[%clk 0:02:57]}  Bh5 {[%clk 0:02:45]} 12. Nh4 {[%clk 0:02:58]}  Bg6 {[%clk 0:02:35]} 13. Nxg6 {[%clk 0:02:58]}  hxg6 {[%clk 0:02:35]} 14. Nd2 {[%clk 0:02:58]}  a5 {[%clk 0:02:34]} 15. e3 {[%clk 0:02:47]}  Rfe8 {[%clk 0:02:30]} 16. Nf3 {[%clk 0:02:47]}  e4 {[%clk 0:02:28]} 17. dxe4 {[%clk 0:02:36]}  dxe4 {[%clk 0:02:29]} 18. Nd4 {[%clk 0:02:36]}  Nc5 {[%clk 0:02:16]} 19. Bc3 {[%clk 0:02:18]}  Nd3 {[%clk 0:02:12]} 20. Qa2 {[%clk 0:02:13]}  c5 {[%clk 0:01:55]} 21. Nb5 {[%clk 0:02:12]}  Be5 {[%clk 0:01:55]} 22. Rad1 {[%clk 0:02:08]}  Rad8 {[%clk 0:01:52]} 23. Bxa5 {[%clk 0:02:05]}  Ra8 {[%clk 0:01:48]} 24. Bc3 {[%clk 0:02:02]}  Red8 {[%clk 0:01:13]} 25. Rd2 {[%clk 0:01:56]}  Bxc3 {[%clk 0:01:08]} 26. Nxc3 {[%clk 0:01:55]}  Nb4 {[%clk 0:01:08]} 27. Rxd8+ {[%clk 0:01:51]}  Qxd8 {[%clk 0:01:09]} 28. Qb2 {[%clk 0:01:39]}  Nd3 {[%clk 0:01:05]} 29. Qa1 {[%clk 0:01:39]}  Qe7 {[%clk 0:00:57]} 30. Rd1 {[%clk 0:01:35]}  Rd8 {[%clk 0:00:45]} 31. Qb1 {[%clk 0:01:30]}  Qe5 {[%clk 0:00:27]} 32. Nxe4 {[%clk 0:01:30]}  Nxe4 {[%clk 0:00:25]} 33. Rxd3 {[%clk 0:01:30]}  Re8 {[%clk 0:00:18]} 34. Bxe4 {[%clk 0:01:21]}  Qxe4 {[%clk 0:00:17]} 35. Qd1 {[%clk 0:01:20]}  Kh7 {[%clk 0:00:16]} 36. Qe2 {[%clk 0:01:07]}  Qf5 {[%clk 0:00:16]} 37. Kh2 {[%clk 0:00:52]}  Re6 {[%clk 0:00:16]} 38. Rd5 {[%clk 0:00:50]}  Qb1 {[%clk 0:00:15]} 39. Qg4 {[%clk 0:00:44]}  Re8 {[%clk 0:00:05]} 40. Qh4+ {[%clk 0:00:44]}  Kg8 {[%clk 0:00:05]} 41. Rd8 {[%clk 0:00:44]}  Rxd8 {[%clk 0:00:05]} 42. Qxd8+ {[%clk 0:00:45]}  Kh7 {[%clk 0:00:06]} 43. Qb6 {[%clk 0:00:40]}  Qb2 {[%clk 0:00:05]} 44. Kg2 {[%clk 0:00:39]}  Qc2 {[%clk 0:00:04]} 45. Qxb7 {[%clk 0:00:39]}  Qf5 {[%clk 0:00:02]} 46. a4 {[%clk 0:00:37]} 1-0


[Site "https://www.chess.com"]

[Event "Titled Tuesday Blitz March 29 Early 2022"]
[White "Demchenko, Anton"]
[Black "Le, Tuan Minh"]
[WhiteFideId "4160258"]
[BlackFideId "12401153"]
[WhiteElo "2539"]
[BlackElo "2450"]
[Result "0-1"]
[Round "06"]
[TimeControl "180+1"]
[Date "2022.03.29"]
[WhiteClock "0:00:13"]
[BlackClock "0:00:57"]

1. e4 {[%clk 0:03:00]}  c5 {[%clk 0:02:55]} 2. Nf3 {[%clk 0:03:00]}  Nf6 {[%clk 0:02:56]} 3. e5 {[%clk 0:03:00]}  Nd5 {[%clk 0:02:55]} 4. Nc3 {[%clk 0:03:01]}  e6 {[%clk 0:02:55]} 5. Ne4 {[%clk 0:03:01]}  f5 {[%clk 0:02:55]} 6. Nc3 {[%clk 0:03:00]}  Ne7 {[%clk 0:02:56]} 7. d4 {[%clk 0:02:51]}  cxd4 {[%clk 0:02:56]} 8. Nb5 {[%clk 0:02:51]}  Ng6 {[%clk 0:02:56]} 9. Nbxd4 {[%clk 0:02:40]}  Nxe5 {[%clk 0:02:51]} 10. Nxe5 {[%clk 0:02:03]}  Qa5+ {[%clk 0:02:50]} 11. c3 {[%clk 0:02:04]}  Qxe5+ {[%clk 0:02:51]} 12. Be2 {[%clk 0:02:04]}  Nc6 {[%clk 0:02:48]} 13. O-O {[%clk 0:02:03]}  Be7 {[%clk 0:02:19]} 14. g3 {[%clk 0:01:58]}  O-O {[%clk 0:02:14]} 15. Bf4 {[%clk 0:01:56]}  Qf6 {[%clk 0:02:15]} 16. Nxc6 {[%clk 0:01:52]}  bxc6 {[%clk 0:02:14]} 17. Bd6 {[%clk 0:01:39]}  e5 {[%clk 0:02:09]} 18. Qb3+ {[%clk 0:01:18]}  Kh8 {[%clk 0:02:07]} 19. Bc7 {[%clk 0:01:18]}  d5 {[%clk 0:02:02]} 20. f4 {[%clk 0:01:18]}  e4 {[%clk 0:01:25]} 21. Be5 {[%clk 0:01:15]}  Qe6 {[%clk 0:01:26]} 22. c4 {[%clk 0:00:59]}  Bc5+ {[%clk 0:01:19]} 23. Kg2 {[%clk 0:00:59]}  d4 {[%clk 0:01:19]} 24. Rfe1 {[%clk 0:00:51]}  Qf7 {[%clk 0:01:07]} 25. Qa4 {[%clk 0:00:46]}  Qb7 {[%clk 0:01:02]} 26. b4 {[%clk 0:00:22]}  Qxb4 {[%clk 0:01:02]} 27. Qxb4 {[%clk 0:00:22]}  Bxb4 {[%clk 0:01:03]} 28. Bxd4 {[%clk 0:00:23]}  Bxe1 {[%clk 0:00:58]} 29. Rxe1 {[%clk 0:00:24]}  Be6 {[%clk 0:00:59]} 30. Be5 {[%clk 0:00:23]}  Rfd8 {[%clk 0:00:57]} 31. Kf2 {[%clk 0:00:22]}  Rd2 {[%clk 0:00:57]} 32. a4 {[%clk 0:00:13]}  Bxc4 {[%clk 0:00:57]} 0-1


[Site "https://www.chess.com"]

[Event "Titled Tuesday Blitz March 29 Early 2022"]
[White "Derjabin, Ilja"]
[Black "Kamsky, Gata"]
[WhiteFideId "14104768"]
[BlackFideId "2000024"]
[WhiteElo "2341"]
[BlackElo "2645"]
[Result "0-1"]
[Round "06"]
[TimeControl "180+1"]
[Date "2022.03.29"]
[WhiteClock "0:00:42"]
[BlackClock "0:01:25"]

1. d4 {[%clk 0:03:00]}  f5 {[%clk 0:02:57]} 2. e4 {[%clk 0:02:56]}  fxe4 {[%clk 0:02:56]} 3. f3 {[%clk 0:02:56]}  e3 {[%clk 0:02:54]} 4. Bxe3 {[%clk 0:02:53]}  Nf6 {[%clk 0:02:54]} 5. Bd3 {[%clk 0:02:48]}  e6 {[%clk 0:02:49]} 6. Ne2 {[%clk 0:02:35]}  b6 {[%clk 0:02:46]} 7. g4 {[%clk 0:02:29]}  Bb7 {[%clk 0:02:41]} 8. Nd2 {[%clk 0:02:22]}  Nc6 {[%clk 0:02:12]} 9. c3 {[%clk 0:02:07]}  Nd5 {[%clk 0:01:59]} 10. Bf2 {[%clk 0:02:06]}  Qf6 {[%clk 0:01:57]} 11. Qc2 {[%clk 0:01:59]}  g6 {[%clk 0:01:55]} 12. Ne4 {[%clk 0:01:44]}  Qxf3 {[%clk 0:01:51]} 13. Rf1 {[%clk 0:01:40]}  Ncb4 {[%clk 0:01:44]} 14. cxb4 {[%clk 0:01:20]}  Nxb4 {[%clk 0:01:43]} 15. Nd2 {[%clk 0:01:13]}  Nxd3+ {[%clk 0:01:42]} 16. Kd1 {[%clk 0:01:13]}  Nxf2+ {[%clk 0:01:42]} 17. Ke1 {[%clk 0:01:09]}  Nd3+ {[%clk 0:01:39]} 18. Kd1 {[%clk 0:01:09]}  Qh3 {[%clk 0:01:35]} 19. Qxc7 {[%clk 0:01:02]}  Bg2 {[%clk 0:01:33]} 20. Rxf8+ {[%clk 0:00:45]}  Rxf8 {[%clk 0:01:32]} 21. Nc4 {[%clk 0:00:45]}  Nxb2+ {[%clk 0:01:26]} 22. Nxb2 {[%clk 0:00:44]}  Rf1+ {[%clk 0:01:25]} 23. Kd2 {[%clk 0:00:42]}  Rxa1 {[%clk 0:01:25]} 0-1


[Site "https://www.chess.com"]

[Event "Titled Tuesday Blitz March 29 Early 2022"]
[White "Derraugh, Geordie"]
[Black "Guseva, Marina"]
[WhiteFideId "2603950"]
[BlackFideId "4149351"]
[WhiteElo "2116"]
[BlackElo "2160"]
[Result "1-0"]
[Round "06"]
[TimeControl "180+1"]
[Date "2022.03.30"]
[WhiteClock "0:01:34"]
[BlackClock "0:00:46"]

1. e4 {[%clk 0:03:00]}  c5 {[%clk 0:02:59]} 2. c3 {[%clk 0:03:00]}  d5 {[%clk 0:02:58]} 3. exd5 {[%clk 0:02:58]}  Qxd5 {[%clk 0:02:58]} 4. Nf3 {[%clk 0:02:58]}  Nf6 {[%clk 0:02:58]} 5. d4 {[%clk 0:02:58]}  Bg4 {[%clk 0:02:57]} 6. Be2 {[%clk 0:02:56]}  e6 {[%clk 0:02:56]} 7. Na3 {[%clk 0:02:55]}  Nc6 {[%clk 0:02:54]} 8. Nb5 {[%clk 0:02:55]}  Qd8 {[%clk 0:02:53]} 9. Bf4 {[%clk 0:02:53]}  Nd5 {[%clk 0:02:46]} 10. Bg3 {[%clk 0:02:52]}  a6 {[%clk 0:02:45]} 11. Na3 {[%clk 0:02:48]}  Bxf3 {[%clk 0:02:40]} 12. Bxf3 {[%clk 0:02:48]}  cxd4 {[%clk 0:02:40]} 13. cxd4 {[%clk 0:02:25]}  Bb4+ {[%clk 0:02:23]} 14. Kf1 {[%clk 0:02:25]}  O-O {[%clk 0:02:22]} 15. Nc2 {[%clk 0:02:25]}  Be7 {[%clk 0:02:20]} 16. Ne3 {[%clk 0:02:24]}  Bf6 {[%clk 0:02:12]} 17. Nxd5 {[%clk 0:02:05]}  exd5 {[%clk 0:02:11]} 18. Qb3 {[%clk 0:02:05]}  Nxd4 {[%clk 0:02:10]} 19. Qxd5 {[%clk 0:02:05]}  Nxf3 {[%clk 0:02:10]} 20. Qxf3 {[%clk 0:02:02]}  Qd2 {[%clk 0:01:41]} 21. Qe2 {[%clk 0:01:46]}  Qxe2+ {[%clk 0:01:31]} 22. Kxe2 {[%clk 0:01:47]}  Rfe8+ {[%clk 0:01:30]} 23. Kf3 {[%clk 0:01:47]}  Rad8 {[%clk 0:01:25]} 24. Rad1 {[%clk 0:01:46]}  Bxb2 {[%clk 0:01:21]} 25. Rxd8 {[%clk 0:01:45]}  Rxd8 {[%clk 0:01:21]} 26. Rb1 {[%clk 0:01:46]}  Rd2 {[%clk 0:01:20]} 27. Ke3 {[%clk 0:01:43]}  Bc3 {[%clk 0:01:01]} 28. Rc1 {[%clk 0:01:34]}  Rxa2 {[%clk 0:00:51]} 29. Rxc3 {[%clk 0:01:34]}  f6 {[%clk 0:00:47]} 30. Rc8+ {[%clk 0:01:33]}  Kf7 {[%clk 0:00:46]} 31. Rc7+ {[%clk 0:01:34]}  Kg6 {[%clk 0:00:46]} 32. Rxb7 {[%clk 0:01:34]} 1-0


[Site "https://www.chess.com"]